Workbook

Sheet Cover
I2: Hubbard Decision Research 2S410 Canterbury Ct Glen Ellyn, IL 60137 www.hubbardresearch.com
E5: Table of Contents for Decision Analysis Examples
E7: 1) Risk Tolerance from Chapter 6 2) Dawes Linear Model from Chapter 8 3) Information Value Example from Chapters 10 and 11

Sheet RiskTolerance
A1: Risk Tolerance (Chapter 6)
B2: This tab allows a user to define an unambiguous risk tolerance by assessing just-barely-acceptable bets representing a typical investment, a relative safe one, and a longshot. Three different models are used to represent risk tolerance of the decision maker: Constand Absolute Risk Aversion (CARA), Relative Risk Aversion (RRA), and exponential (Exp). These three models try to find a best fit solution for the risk tolerance of the investor but minimizing the "fit" in row 9 by changing values in rows 7 and 8. Notes that two of the models require an "initial wealth" assumption while one (CARA) does not. Also the exponential only varies initial wealth to try to find a fit. Since RRA varies two parameters to fit the stated preferences, it will usually find the best fit of the three.
B3: $Gain | C3: $Loss | D3: P(Gain) | E3: CARA CME | F3: RRA CME | G3: Exp CME
A4: Safe bet | B4: 5 | C4: -3 | D4: 0.8 | E4: =-E$7*LN(1-(1-EXP(-B4/E$7))*D4-(1-EXP(-C4/E$7))*(1-D4)) -> 0.0774695715 | F4: =EXP(LN((B4+$F$8)^(1-$F$7)*D4+(C4+$F$8)^(1-$F$7)*(1-D4))/(1-$F$7))-$F$8 -> 2.333333333 | G4: =EXP(LN(B4+$G$8)*D4+LN(C4+$G$8)*(1-D4))-$G$8 -> 2.928809013
A5: Typical investment | B5: 2 | C5: -1 | D5: 0.6 | E5: =-E$7*LN(1-(1-EXP(-B5/E$7))*D5-(1-EXP(-C5/E$7))*(1-D5)) -> 0.2551755011 | F5: =EXP(LN((B5+$F$8)^(1-$F$7)*D5+(C5+$F$8)^(1-$F$7)*(1-D5))/(1-$F$7))-$F$8 -> 0.6071428571 | G5: =EXP(LN(B5+$G$8)*D5+LN(C5+$G$8)*(1-D5))-$G$8 -> 0.7048542822
A6: longshot | B6: 15 | C6: -3 | D6: 0.2 | E6: =-E$7*LN(1-(1-EXP(-B6/E$7))*D6-(1-EXP(-C6/E$7))*(1-D6)) -> -2.553774601 | F6: =EXP(LN((B6+$F$8)^(1-$F$7)*D6+(C6+$F$8)^(1-$F$7)*(1-D6))/(1-$F$7))-$F$8 -> -1.714285714 | G6: =EXP(LN(B6+$G$8)*D6+LN(C6+$G$8)*(1-D6))-$G$8 -> -0.8733299667
B7: Utility Coeficients: | E7: 2 | F7: 2 | G7: NA
B8: Initial Wealth: | E8: NA | F8: 11 | G8: 11
B9: Fit (lower is better fit): | E9: =SUMSQ(E4:E6) -> 6.592880785 | F9: =SUMSQ(F4:F6) -> 8.751842404 | G9: 9.837447023

Sheet Dawes Linear Model
A1: Dawes Linear Model Example (Chapter 8)
A2: The primary purpose of this is to show how z-scores are computed from a set of inputs. This example is one that estimates relative risks in R&D projects based on four factors. The z-scores, row 7 columns G to J, convert these inputs to a standardized unit. The primary reason this might improve on human experts is simply because experts tend to be inconsistent. This avoids the errors introduced by ordinal scales but may not perform as well as a Lens Model. | F2: Mean | G2: =AVERAGE(A7:A27) -> 18.52380952 | H2: =AVERAGE(B7:B27) -> 5.285714286 | I2: =AVERAGE(C7:C27) -> 0.5238095238 | J2: =AVERAGE(D7:D27) -> 4.047619048 | K2: Total Weighted z-scores. In this case, a negative z-score means the risk is lower than average. A positive z-score means it is higher than average. Color coding is added with Excel's "Conditional Formating" function so that the riskiest are shown as red, the least risky are green and yellow is in between.
F3: Standard Devation | G3: =STDEV(A7:A27) -> 17.16280585 | H3: =STDEV(B7:B27) -> 3.887709572 | I3: =STDEV(C7:C27) -> 0.5117663157 | J3: =STDEV(D7:D27) -> 4.055566427
F4: Direction: This shows whether more of a given factor increases risk (+1) or decreases risk (-1). | G4: 1 | H4: 1 | I4: -1 | J4: 1
F5: Weight (optional): Dawes research shows that even equally weighted z-scores might outperform unaided human experts. But if some factors are obviously more important than others, the relative weights can be used to reflect that. | G5: 1 | H5: 1 | I5: 1 | J5: 1
A6: Estimated Cost ($millions) | B6: Estimated Duration (Years) | C6: Currently patented | D6: Related new patents per year | G6: Estimated Cost z-score | H6: Estimated Duration z-score | I6: Currently patented z-score | J6: Related new patents per year z-score
A7: 12 | B7: 2 | C7: 1 | D7: 1 | F7: Weighted z-scores ====>>> | G7: =(A7-G$2)/G$3*G$4*G$5 -> -0.3801132274 | H7: =(B7-H$2)/H$3*H$4*H$5 -> -0.8451542547 | I7: =(C7-I$2)/I$3*I$4*I$5 -> -0.9304842104 | J7: =(D7-J$2)/J$3*J$4*J$5 -> -0.7514656959 | K7: =SUM(G7:J7) -> -2.907217388
A8: 4 | B8: 1 | C8: 1 | D8: 5 | G8: =(A8-G$2)/G$3*G$4*G$5 -> -0.846237477 | H8: -1.102375115 | I8: -0.9304842104 | J8: 0.23483303 | K8: =SUM(G8:J8) -> -2.644263772
A9: 25 | B9: 5 | C9: 0 | D9: 12 | G9: 0.3773386783 | H9: -0.07349167432 | I9: 1.023532631 | J9: 1.9608558 | K9: 3.288235436
A10: 6 | B10: 4 | C10: 0 | D10: 2 | G10: -0.7297064146 | H10: -0.3307125345 | I10: 1.023532631 | J10: -0.5048910144 | K10: -0.541777332
A11: 9 | B11: 2 | C11: 0 | D11: 1 | G11: -0.554909821 | H11: -0.8451542547 | I11: 1.023532631 | J11: -0.7514656959 | K11: -1.12799714
A12: 50 | B12: 5 | C12: 1 | D12: 9 | G12: 1.833976958 | H12: -0.07349167432 | I12: -0.9304842104 | J12: 1.221131756 | K12: 2.051132829
A13: 1 | B13: 7 | C13: 0 | D13: 15 | G13: -1.021034071 | H13: 0.4409500459 | I13: 1.023532631 | J13: 2.700579845 | K13: 3.144028451
A14: 3 | B14: 2 | C14: 0 | D14: 4 | G14: -0.9045030082 | H14: -0.8451542547 | I14: 1.023532631 | J14: -0.0117416515 | K14: -0.737866283
A15: 44 | B15: 9 | C15: 1 | D15: 2 | G15: 1.484383771 | H15: 0.9553917662 | I15: -0.9304842104 | J15: -0.5048910144 | K15: 1.004400313
A16: 29 | B16: 7 | C16: 1 | D16: 3 | G16: 0.6104008031 | H16: 0.4409500459 | I16: -0.9304842104 | J16: -0.258316333 | K16: -0.1374496943
A17: 3 | B17: 3 | C17: 1 | D17: 1 | G17: -0.9045030082 | H17: -0.5879333946 | I17: -0.9304842104 | J17: -0.7514656959 | K17: -3.174386309
A18: 15 | B18: 4 | C18: 0 | D18: 0 | G18: -0.2053166338 | H18: -0.3307125345 | I18: 1.023532631 | J18: -0.9980403773 | K18: -0.5105369141
A19: 11 | B19: 3 | C19: 1 | D19: 1 | G19: -0.4383787586 | H19: -0.5879333946 | I19: -0.9304842104 | J19: -0.7514656959 | K19: -2.708262059
A20: 8 | B20: 2 | C20: 1 | D20: 1 | G20: -0.6131753522 | H20: -0.8451542547 | I20: -0.9304842104 | J20: -0.7514656959 | K20: -3.140279513
A21: 19 | B21: 10 | C21: 0 | D21: 5 | G21: 0.02774549105 | H21: 1.212612626 | I21: 1.023532631 | J21: 0.23483303 | K21: 2.498723779
A22: 33 | B22: 15 | C22: 1 | D22: 2 | G22: 0.8434629279 | H22: 2.498716927 | I22: -0.9304842104 | J22: -0.5048910144 | K22: 1.90680463
A23: 62 | B23: 12 | C23: 0 | D23: 3 | G23: 2.533163333 | H23: 1.727054347 | I23: 1.023532631 | J23: -0.258316333 | K23: 5.025433978
A24: 31 | B24: 10 | C24: 0 | D24: 1 | G24: 0.7269318655 | H24: 1.212612626 | I24: 1.023532631 | J24: -0.7514656959 | K24: 2.211611427
A25: 13 | B25: 4 | C25: 0 | D25: 9 | G25: -0.3218476962 | H25: -0.3307125345 | I25: 1.023532631 | J25: 1.221131756 | K25: 1.592104157
A26: 4 | B26: 2 | C26: 1 | D26: 6 | G26: -0.846237477 | H26: -0.8451542547 | I26: -0.9304842104 | J26: 0.4814077114 | K26: -2.140468231
A27: 7 | B27: 2 | C27: 1 | D27: 2 | G27: -0.6714408834 | H27: -0.8451542547 | I27: -0.9304842104 | J27: -0.5048910144 | K27: -2.951970363

Sheet SimpleInfoValue
A1: Simple Expected Opportunity Loss (EOL) Example (Chapters 10 and 11)
A2: This is the simple Expected Opportunity Loss (EOL) Example. The values are for a proposed advertising campaign but you could change them to any simple, binary decision problem. Remember the EOL is also the Expected Value of Perfect Information (EVPI). The more elaborate calculation for ranges is on the next worksheet.
C3: Good Outcome (eg. Campaign succeeds) | D3: Bad Outcome (eg. Campaign Fails)
A4: Chance of Outcome: | C4: 0.6 | D4: =1-C4 -> 0.4
A5: Choice | C5: Payoff
A6: A (eg. Invest in the new ad campaign) | C6: 40000000 | D6: -5000000
A7: B (eg. Don't Invest in the ad campaign) | C7: 0 | D7: 0
A9: Expected Opportunity Loss (EOL) Results for Exhibit 7.1
B10: Opportunity Loss | C10: Chance of being wrong | D10: Expected Opportunity Loss (EOL)
A11: If initially desired choice is A | B11: =ABS(MIN(C6:D6)) -> 5000000 | C11: =D4 -> 0.4 | D11: =C11*B11 -> 2000000
A12: If initially desired choice is B | B12: =ABS(MAX(C6:D6)) -> 40000000 | C12: =C4 -> 0.6 | D12: =C12*B12 -> 24000000

Sheet InfoValUniform
A1: Continuous Information Value Calculation using a Uniform (Chapters 10 and 11)
A2: This is an example of an information value calculation for a continuous quantity with a uniform distribution. This calculation is different from the information value calculation for a normal because it can be calculated exactly without have to "slice up" the distribution as we did with the normal distribution. Input values are the yellow cells.
A3: As with the normal distribution, this spreadsheet can give a slightly more accurate answer than the chart in Doug's book. The lower and upper bounds of this spreadsheet are "absolute" bounds. Unlike the 90% confidence interval, there is no chance the value can be outside of the stated bounds. The only problem in using this spreadsheet is that for many special cases the "loss rate" may change depending on the quantity estimated. For example, the rate of loss in this spreadsheet (cell B9) is fixed and many loss functions accelerate as things get worse, or it may level off. Hubbard's more advanced Monte Carlo simulation tools address of of these issues. See Hubbard's tools on the catalog page at www.howtomeasureanything.com for more info.
A4: Inputs to Information Value Calculation
A5: Upper Bound | D5: 700
A6: Lower Bound | D6: 450 | Z6: over
A7: Interval Range | D7: =D5-D6 -> 250 | Z7: under
A8: Threshold | D8: 500
A9: Loss rate (on the undesirable side of the threshold) | D9: 75000
A10: Mean | D10: =(D5+D6)/2 -> 575
A11: Standard deviation | D11: =(D5-D6)/12^0.5 -> 72.16878365
A12: Does the loss occur under or over the threshold? | D12: under
A13: Information Value if it were a uniform distribution with the absolute constraints above | D13: =IF(EXACT(D12,"under"),MAX(0,D8-D6)^2/2*D9/(D5-D6),MAX(0,D5-D8)^2/2*D9/(D5-D6)) -> 375000
A15: Confidence Interval Bars | C15: Mean Bar | E15: Threshold Bar | G15: Loss Function
A16: =D6 -> 450 | B16: 0 | C16: =D10 -> 575 | D16: 0 | E16: =D8 -> 500 | F16: 0 | G16: =IF(D12="under",D9*ABS(H16-D8),0) -> 13125000 | H16: =D10-D7 -> 325
A17: =D6 -> 450 | B17: 0.1 | C17: =D10 -> 575 | D17: 0.1 | E17: =D8 -> 500 | F17: 0.15 | G17: 0 | H17: =D8 -> 500
A18: =D5 -> 700 | B18: 0.1 | G18: =IF(D12="over",D9*ABS(D8-H18),0) -> 0 | H18: =D10+D7 -> 825
A19: =D5 -> 700 | B19: 0

Sheet InfoValNormal
A1: Continuous Information Value Calculation using a Normal Distribution (Chapter 10 and 11)
A2: This is an example of an information value calculation for a continuous quantity that is normally distributed (See the next worksheet tab for the example with a uniform distribution). As mentioned in the book, one way to compute the value of reducing uncertainty about a range is to chop up the range into hundreds of small slices, compute the probability and loss for each slice, multiply each probability and loss, and add them all up. This is what this spreadsheet does. It slices the possible range of values of the quantity into 2000 pieces up to 5 standard deviations from the mean. For each slice, it computes the loss and the probability of that slice. The product of each loss & probability pair is added to all the other such products to get the Expected Value of Perfect Information (EVPI) for the uncertain quantity.
A3: This spreadsheet can give a slightly more accurate answer than the chart in the book for two reasons. First, it doesn't depend on "eyeballing" the lines on the chart. Second, the chart doesnt allow for truncated values. That is, the quantity which we are computing the informatin value for, could be much farther beyond either of the bounds of the 90% CI. But, in reality, we might want to put realistic "hard stops" on these values. This spreadsheet asks for "absolute" min and max bounds in addition to the 90% CI bounds. However, even this is still less accurate than the VIA calculation tools for many special cases. For example, the rate of loss in this spreadsheet (cell B9) is fixed and many loss functions accelerate as things get worse, or it may level off. Hubbard's more sophisticated Monte Carlo tool handles all of these issues. See Hubbard's tools on the catalog page at www.howtomeasureanything.com for more info. Input values into yellow shaded cells
A4: Inputs to Information Value Calculation
A5: 90% CI Upper Bound | D5: 1000000
A6: 90% CI Lower Bound | D6: -1000000
A7: Interval Range | D7: =D5-D6 -> 2000000
A8: Threshold | D8: 0
A9: Loss rate (on the undesirable side of the threshold) | D9: 1
A10: Mean | D10: =(D5+D6)/2 -> 0
A11: Standard deviation | D11: =(D5-D6)/3.29 -> 607902.7356
A12: Does the loss occur under or over the threshold? | D12: under
A13: The absolute minimum the quantity can reach | D13: -9999999999 | AG13: over
A14: The absolute maximum the quantity can reach | D14: 9999999999 | AG14: under
A15: Estimated Information Value for a normally distributed uncertain quantity with the 90% confidence interval adjusted for absolute constraints | D15: =SUMPRODUCT(C18:C2018,D18:D2018)*SUM(D18:D2018) -> 241757.6885
A17: Standard deviation | B17: Quantity | C17: Loss | D17: Incremental Probability
A18: -5 | B18: =A18*D$11+D$10 -> -3039513.678 | C18: =IF(EXACT(D$12,"under"),IF(B18<D$8,D$9*(D$8-B18),0),IF(B18>D$8,D$9*(B18-D$8),0)) -> 3039513.678 | D18: 0 | F18: cpf for Data | G18: Incremental P for Data | H18: Parameter Values | I18: Confidence Interval Bars | K18: Threshold Bars | O18: Truncated probabilities
A19: -4.995 | B19: -3036474.164 | C19: 3036474.164 | D19: =IF(OR(B19<D$13,B19>D$14),0,NORMDIST(B19,D$10,D$11,1)-NORMDIST(B18,D$10,D$11,1)) -> 7.527265181e-09 | F19: =NORMDIST(B18,D$10,D$11,1) -> 2.866515719e-07 | I19: =D6 -> -1000000 | J19: 0 | K19: =D8 -> 0 | L19: 0 | N19: Absolute lower | O19: =NORMDIST(D13,D10,D11,1) -> 0
A20: -4.99 | B20: -3033434.65 | C20: 3033434.65 | D20: 7.717625461e-09 | F20: 2.941788371e-07 | G20: =IF(AND(H20>=D$13,H20<=D$14),(F20-F19)/(1-O$19-O$20),0) -> 7.527265181e-09 | H20: =D$10+A19*D$11 -> -3036474.164 | I20: =D6 -> -1000000 | J20: 0.0005 | K20: =D8 -> 0 | L20: 0.0019 | N20: Absolute upper | O20: =1-NORMDIST(D14,D10,D11,1) -> 0
A21: -4.985 | B21: -3030395.137 | C21: 3030395.137 | D21: 7.912602029e-09 | F21: 3.018964625e-07 | G21: 7.717625461e-09 | H21: -3033434.65 | I21: =D5 -> 1000000 | J21: 0
A22: -4.98 | B22: -3027355.623 | C22: 3027355.623 | D22: 8.112301636e-09 | F22: 3.098090645e-07 | G22: 7.912602029e-09 | H22: -3030395.137 | I22: =D5 -> 1000000 | J22: 0.0005
A23: -4.975 | B23: -3024316.109 | C23: 3024316.109 | D23: 8.316833373e-09 | F23: 3.179213662e-07 | G23: 8.112301636e-09 | H23: -3027355.623
A24: -4.97 | B24: -3021276.596 | C24: 3021276.596 | D24: 8.526308715e-09 | F24: 3.262381996e-07 | G24: 8.316833373e-09 | H24: -3024316.109 | N24: =IF(AND(H20>=D$13,H20<=D$14),(F20-F19)/(1-O$19-O$20),0) -> 7.527265181e-09
A25: -4.965 | B25: -3018237.082 | C25: 3018237.082 | D25: 8.740841571e-09 | F25: 3.347645083e-07 | G25: 8.526308715e-09 | H25: -3021276.596
A26: -4.96 | B26: -3015197.568 | C26: 3015197.568 | D26: 8.960548332e-09 | F26: 3.435053498e-07 | G26: 8.740841571e-09 | H26: -3018237.082
A27: -4.955 | B27: -3012158.055 | C27: 3012158.055 | D27: 9.185547925e-09 | F27: 3.524658982e-07 | G27: 8.960548332e-09 | H27: -3015197.568
A28: -4.95 | B28: -3009118.541 | C28: 3009118.541 | D28: 9.415961862e-09 | F28: 3.616514461e-07 | G28: 9.185547925e-09 | H28: -3012158.055
A29: -4.945 | B29: -3006079.027 | C29: 3006079.027 | D29: 9.651914293e-09 | F29: 3.71067408e-07 | G29: 9.415961862e-09 | H29: -3009118.541
A30: -4.94 | B30: -3003039.514 | C30: 3003039.514 | D30: 9.893532062e-09 | F30: 3.807193223e-07 | G30: 9.651914293e-09 | H30: -3006079.027
A31: -4.935 | B31: -3000000 | C31: 3000000 | D31: 1.014094476e-08 | F31: 3.906128543e-07 | G31: 9.893532062e-09 | H31: -3003039.514
A32: -4.93 | B32: -2996960.486 | C32: 2996960.486 | D32: 1.039428477e-08 | F32: 4.007537991e-07 | G32: 1.014094476e-08 | H32: -3000000
A33: -4.925 | B33: -2993920.973 | C33: 2993920.973 | D33: 1.065368735e-08 | F33: 4.111480838e-07 | G33: 1.039428477e-08 | H33: -2996960.486
A34: -4.92 | B34: -2990881.459 | C34: 2990881.459 | D34: 1.091929067e-08 | F34: 4.218017712e-07 | G34: 1.065368735e-08 | H34: -2993920.973
A35: -4.915 | B35: -2987841.945 | C35: 2987841.945 | D35: 1.119123586e-08 | F35: 4.327210619e-07 | G35: 1.091929067e-08 | H35: -2990881.459
A36: -4.91 | B36: -2984802.432 | C36: 2984802.432 | D36: 1.146966712e-08 | F36: 4.439122977e-07 | G36: 1.119123586e-08 | H36: -2987841.945
A37: -4.905 | B37: -2981762.918 | C37: 2981762.918 | D37: 1.17547317e-08 | F37: 4.553819648e-07 | G37: 1.146966712e-08 | H37: -2984802.432
A38: -4.9 | B38: -2978723.404 | C38: 2978723.404 | D38: 1.204658005e-08 | F38: 4.671366965e-07 | G38: 1.17547317e-08 | H38: -2981762.918
A39: -4.895 | B39: -2975683.891 | C39: 2975683.891 | D39: 1.234536582e-08 | F39: 4.791832766e-07 | G39: 1.204658005e-08 | H39: -2978723.404
A40: -4.89 | B40: -2972644.377 | C40: 2972644.377 | D40: 1.265124595e-08 | F40: 4.915286424e-07 | G40: 1.234536582e-08 | H40: -2975683.891
A41: -4.885 | B41: -2969604.863 | C41: 2969604.863 | D41: 1.296438073e-08 | F41: 5.041798884e-07 | G41: 1.265124595e-08 | H41: -2972644.377
A42: -4.88 | B42: -2966565.35 | C42: 2966565.35 | D42: 1.328493388e-08 | F42: 5.171442691e-07 | G42: 1.296438073e-08 | H42: -2969604.863
A43: -4.875 | B43: -2963525.836 | C43: 2963525.836 | D43: 1.36130726e-08 | F43: 5.30429203e-07 | G43: 1.328493388e-08 | H43: -2966565.35
A44: -4.87 | B44: -2960486.322 | C44: 2960486.322 | D44: 1.394896763e-08 | F44: 5.440422756e-07 | G44: 1.36130726e-08 | H44: -2963525.836
A45: -4.865 | B45: -2957446.809 | C45: 2957446.809 | D45: 1.429279337e-08 | F45: 5.579912432e-07 | G45: 1.394896763e-08 | H45: -2960486.322
A46: -4.86 | B46: -2954407.295 | C46: 2954407.295 | D46: 1.464472789e-08 | F46: 5.722840366e-07 | G46: 1.429279337e-08 | H46: -2957446.809
A47: -4.855 | B47: -2951367.781 | C47: 2951367.781 | D47: 1.500495303e-08 | F47: 5.869287645e-07 | G47: 1.464472789e-08 | H47: -2954407.295
A48: -4.85 | B48: -2948328.267 | C48: 2948328.267 | D48: 1.537365451e-08 | F48: 6.019337175e-07 | G48: 1.500495303e-08 | H48: -2951367.781
A49: -4.845 | B49: -2945288.754 | C49: 2945288.754 | D49: 1.575102193e-08 | F49: 6.17307372e-07 | G49: 1.537365451e-08 | H49: -2948328.267
A50: -4.84 | B50: -2942249.24 | C50: 2942249.24 | D50: 1.613724892e-08 | F50: 6.330583939e-07 | G50: 1.575102193e-08 | H50: -2945288.754
A51: -4.835 | B51: -2939209.726 | C51: 2939209.726 | D51: 1.653253317e-08 | F51: 6.491956429e-07 | G51: 1.613724892e-08 | H51: -2942249.24
A52: -4.83 | B52: -2936170.213 | C52: 2936170.213 | D52: 1.693707653e-08 | F52: 6.65728176e-07 | G52: 1.653253317e-08 | H52: -2939209.726
A53: -4.825 | B53: -2933130.699 | C53: 2933130.699 | D53: 1.73510851e-08 | F53: 6.826652526e-07 | G53: 1.693707653e-08 | H53: -2936170.213
A54: -4.82 | B54: -2930091.185 | C54: 2930091.185 | D54: 1.777476929e-08 | F54: 7.000163377e-07 | G54: 1.73510851e-08 | H54: -2933130.699
A55: -4.815 | B55: -2927051.672 | C55: 2927051.672 | D55: 1.820834391e-08 | F55: 7.177911069e-07 | G55: 1.777476929e-08 | H55: -2930091.185
A56: -4.81 | B56: -2924012.158 | C56: 2924012.158 | D56: 1.865202829e-08 | F56: 7.359994509e-07 | G56: 1.820834391e-08 | H56: -2927051.672
A57: -4.805 | B57: -2920972.644 | C57: 2920972.644 | D57: 1.910604631e-08 | F57: 7.546514791e-07 | G57: 1.865202829e-08 | H57: -2924012.158
A58: -4.8 | B58: -2917933.131 | C58: 2917933.131 | D58: 1.957062652e-08 | F58: 7.737575255e-07 | G58: 1.910604631e-08 | H58: -2920972.644
A59: -4.795 | B59: -2914893.617 | C59: 2914893.617 | D59: 2.004600226e-08 | F59: 7.93328152e-07 | G59: 1.957062652e-08 | H59: -2917933.131
A60: -4.79 | B60: -2911854.103 | C60: 2911854.103 | D60: 2.053241169e-08 | F60: 8.133741542e-07 | G60: 2.004600226e-08 | H60: -2914893.617
A61: -4.785 | B61: -2908814.59 | C61: 2908814.59 | D61: 2.103009791e-08 | F61: 8.339065659e-07 | G61: 2.053241169e-08 | H61: -2911854.103
A62: -4.78 | B62: -2905775.076 | C62: 2905775.076 | D62: 2.153930909e-08 | F62: 8.549366638e-07 | G62: 2.103009791e-08 | H62: -2908814.59
A63: -4.775 | B63: -2902735.562 | C63: 2902735.562 | D63: 2.206029852e-08 | F63: 8.764759729e-07 | G63: 2.153930909e-08 | H63: -2905775.076
A64: -4.77 | B64: -2899696.049 | C64: 2899696.049 | D64: 2.259332472e-08 | F64: 8.985362714e-07 | G64: 2.206029852e-08 | H64: -2902735.562
A65: -4.765 | B65: -2896656.535 | C65: 2896656.535 | D65: 2.313865155e-08 | F65: 9.211295962e-07 | G65: 2.259332472e-08 | H65: -2899696.049
A66: -4.76 | B66: -2893617.021 | C66: 2893617.021 | D66: 2.369654832e-08 | F66: 9.442682477e-07 | G66: 2.313865155e-08 | H66: -2896656.535
A67: -4.755 | B67: -2890577.508 | C67: 2890577.508 | D67: 2.426728986e-08 | F67: 9.67964796e-07 | G67: 2.369654832e-08 | H67: -2893617.021
A68: -4.75 | B68: -2887537.994 | C68: 2887537.994 | D68: 2.485115668e-08 | F68: 9.922320859e-07 | G68: 2.426728986e-08 | H68: -2890577.508
A69: -4.745 | B69: -2884498.48 | C69: 2884498.48 | D69: 2.544843501e-08 | F69: 1.017083243e-06 | G69: 2.485115668e-08 | H69: -2887537.994
A70: -4.74 | B70: -2881458.967 | C70: 2881458.967 | D70: 2.605941697e-08 | F70: 1.042531678e-06 | G70: 2.544843501e-08 | H70: -2884498.48
A71: -4.735 | B71: -2878419.453 | C71: 2878419.453 | D71: 2.668440065e-08 | F71: 1.068591095e-06 | G71: 2.605941697e-08 | H71: -2881458.967
A72: -4.73 | B72: -2875379.939 | C72: 2875379.939 | D72: 2.732369024e-08 | F72: 1.095275495e-06 | G72: 2.668440065e-08 | H72: -2878419.453
A73: -4.725 | B73: -2872340.426 | C73: 2872340.426 | D73: 2.797759611e-08 | F73: 1.122599185e-06 | G73: 2.732369024e-08 | H73: -2875379.939
A74: -4.72 | B74: -2869300.912 | C74: 2869300.912 | D74: 2.864643497e-08 | F74: 1.150576782e-06 | G74: 2.797759611e-08 | H74: -2872340.426
A75: -4.715 | B75: -2866261.398 | C75: 2866261.398 | D75: 2.933052998e-08 | F75: 1.179223217e-06 | G75: 2.864643497e-08 | H75: -2869300.912
A76: -4.71 | B76: -2863221.884 | C76: 2863221.884 | D76: 3.003021085e-08 | F76: 1.208553746e-06 | G76: 2.933052998e-08 | H76: -2866261.398
A77: -4.705 | B77: -2860182.371 | C77: 2860182.371 | D77: 3.074581398e-08 | F77: 1.238583957e-06 | G77: 3.003021085e-08 | H77: -2863221.884
A78: -4.7 | B78: -2857142.857 | C78: 2857142.857 | D78: 3.147768258e-08 | F78: 1.269329771e-06 | G78: 3.074581398e-08 | H78: -2860182.371
A79: -4.695 | B79: -2854103.343 | C79: 2854103.343 | D79: 3.222616681e-08 | F79: 1.300807454e-06 | G79: 3.147768258e-08 | H79: -2857142.857
A80: -4.69 | B80: -2851063.83 | C80: 2851063.83 | D80: 3.299162388e-08 | F80: 1.333033621e-06 | G80: 3.222616681e-08 | H80: -2854103.343
A81: -4.685 | B81: -2848024.316 | C81: 2848024.316 | D81: 3.377441822e-08 | F81: 1.366025245e-06 | G81: 3.299162388e-08 | H81: -2851063.83
A82: -4.68 | B82: =A82*D$11+D$10 -> -2844984.802 | C82: =IF(EXACT(D$12,"under"),IF(B82<D$8,D$9*(D$8-B82),0),IF(B82>D$8,D$9*(B82-D$8),0)) -> 2844984.802 | D82: 3.457492159e-08 | F82: 1.399799663e-06 | G82: 3.377441822e-08 | H82: -2848024.316
A83: -4.675 | B83: -2841945.289 | C83: 2841945.289 | D83: =IF(OR(B83<D$13,B83>D$14),0,NORMDIST(B83,D$10,D$11,1)-NORMDIST(B82,D$10,D$11,1)) -> 3.539351322e-08 | F83: =NORMDIST(B82,D$10,D$11,1) -> 1.434374584e-06 | G83: 3.457492159e-08 | H83: -2844984.802
A84: -4.67 | B84: -2838905.775 | C84: 2838905.775 | D84: 3.623057995e-08 | F84: 1.469768098e-06 | G84: =IF(AND(H84>=D$13,H84<=D$14),(F84-F83)/(1-O$19-O$20),0) -> 3.539351322e-08 | H84: =D$10+A83*D$11 -> -2841945.289
A85: -4.665 | B85: -2835866.261 | C85: 2835866.261 | D85: 3.708651638e-08 | F85: 1.505998678e-06 | G85: 3.623057995e-08 | H85: -2838905.775
A86: -4.66 | B86: -2832826.748 | C86: 2832826.748 | D86: 3.796172499e-08 | F86: 1.543085194e-06 | G86: 3.708651638e-08 | H86: -2835866.261
A87: -4.655 | B87: -2829787.234 | C87: 2829787.234 | D87: 3.885661632e-08 | F87: 1.581046919e-06 | G87: 3.796172499e-08 | H87: -2832826.748
A88: -4.65 | B88: -2826747.72 | C88: 2826747.72 | D88: 3.977160908e-08 | F88: 1.619903535e-06 | G88: 3.885661632e-08 | H88: -2829787.234
A89: -4.645 | B89: -2823708.207 | C89: 2823708.207 | D89: 4.070713034e-08 | F89: 1.659675144e-06 | G89: 3.977160908e-08 | H89: -2826747.72
A90: -4.64 | B90: -2820668.693 | C90: 2820668.693 | D90: 4.166361564e-08 | F90: 1.700382275e-06 | G90: 4.070713034e-08 | H90: -2823708.207
A91: -4.635 | B91: -2817629.179 | C91: 2817629.179 | D91: 4.264150919e-08 | F91: 1.74204589e-06 | G91: 4.166361564e-08 | H91: -2820668.693
A92: -4.63 | B92: -2814589.666 | C92: 2814589.666 | D92: 4.364126399e-08 | F92: 1.7846874e-06 | G92: 4.264150919e-08 | H92: -2817629.179
A93: -4.625 | B93: -2811550.152 | C93: 2811550.152 | D93: 4.466334203e-08 | F93: 1.828328664e-06 | G93: 4.364126399e-08 | H93: -2814589.666
A94: -4.62 | B94: -2808510.638 | C94: 2808510.638 | D94: 4.570821441e-08 | F94: 1.872992006e-06 | G94: 4.466334203e-08 | H94: -2811550.152
A95: -4.615 | B95: -2805471.125 | C95: 2805471.125 | D95: 4.677636154e-08 | F95: 1.91870022e-06 | G95: 4.570821441e-08 | H95: -2808510.638
A96: -4.61 | B96: -2802431.611 | C96: 2802431.611 | D96: 4.786827329e-08 | F96: 1.965476582e-06 | G96: 4.677636154e-08 | H96: -2805471.125
A97: -4.605 | B97: -2799392.097 | C97: 2799392.097 | D97: 4.898444918e-08 | F97: 2.013344855e-06 | G97: 4.786827329e-08 | H97: -2802431.611
A98: -4.6 | B98: -2796352.584 | C98: 2796352.584 | D98: 5.012539852e-08 | F98: 2.062329304e-06 | G98: 4.898444918e-08 | H98: -2799392.097
A99: -4.595 | B99: -2793313.07 | C99: 2793313.07 | D99: 5.129164063e-08 | F99: 2.112454703e-06 | G99: 5.012539852e-08 | H99: -2796352.584
A100: -4.59 | B100: -2790273.556 | C100: 2790273.556 | D100: 5.248370499e-08 | F100: 2.163746343e-06 | G100: 5.129164063e-08 | H100: -2793313.07
A101: -4.585 | B101: -2787234.043 | C101: 2787234.043 | D101: 5.370213145e-08 | F101: 2.216230048e-06 | G101: 5.248370499e-08 | H101: -2790273.556
A102: -4.58 | B102: -2784194.529 | C102: 2784194.529 | D102: 5.494747037e-08 | F102: 2.26993218e-06 | G102: 5.370213145e-08 | H102: -2787234.043
A103: -4.575 | B103: -2781155.015 | C103: 2781155.015 | D103: 5.622028287e-08 | F103: 2.32487965e-06 | G103: 5.494747037e-08 | H103: -2784194.529
A104: -4.57 | B104: -2778115.502 | C104: 2778115.502 | D104: 5.752114097e-08 | F104: 2.381099933e-06 | G104: 5.622028287e-08 | H104: -2781155.015
A105: -4.565 | B105: -2775075.988 | C105: 2775075.988 | D105: 5.885062782e-08 | F105: 2.438621074e-06 | G105: 5.752114097e-08 | H105: -2778115.502
A106: -4.56 | B106: -2772036.474 | C106: 2772036.474 | D106: 6.020933786e-08 | F106: 2.497471702e-06 | G106: 5.885062782e-08 | H106: -2775075.988
A107: -4.555 | B107: -2768996.96 | C107: 2768996.96 | D107: 6.159787706e-08 | F107: 2.557681039e-06 | G107: 6.020933786e-08 | H107: -2772036.474
A108: -4.55 | B108: -2765957.447 | C108: 2765957.447 | D108: 6.301686312e-08 | F108: 2.619278917e-06 | G108: 6.159787706e-08 | H108: -2768996.96
A109: -4.545 | B109: -2762917.933 | C109: 2762917.933 | D109: 6.446692566e-08 | F109: 2.68229578e-06 | G109: 6.301686312e-08 | H109: -2765957.447
A110: -4.54 | B110: -2759878.419 | C110: 2759878.419 | D110: 6.594870642e-08 | F110: 2.746762705e-06 | G110: 6.446692566e-08 | H110: -2762917.933
A111: -4.535 | B111: -2756838.906 | C111: 2756838.906 | D111: 6.746285953e-08 | F111: 2.812711412e-06 | G111: 6.594870642e-08 | H111: -2759878.419
A112: -4.53 | B112: -2753799.392 | C112: 2753799.392 | D112: 6.901005164e-08 | F112: 2.880174271e-06 | G112: 6.746285953e-08 | H112: -2756838.906
A113: -4.525 | B113: -2750759.878 | C113: 2750759.878 | D113: 7.059096224e-08 | F113: 2.949184323e-06 | G113: 6.901005164e-08 | H113: -2753799.392
A114: -4.52 | B114: -2747720.365 | C114: 2747720.365 | D114: 7.220628382e-08 | F114: 3.019775285e-06 | G114: 7.059096224e-08 | H114: -2750759.878
A115: -4.515 | B115: -2744680.851 | C115: 2744680.851 | D115: 7.38567221e-08 | F115: 3.091981569e-06 | G115: 7.220628382e-08 | H115: -2747720.365
A116: -4.51 | B116: -2741641.337 | C116: 2741641.337 | D116: 7.55429963e-08 | F116: 3.165838291e-06 | G116: 7.38567221e-08 | H116: -2744680.851
A117: -4.505 | B117: -2738601.824 | C117: 2738601.824 | D117: 7.726583932e-08 | F117: 3.241381287e-06 | G117: 7.55429963e-08 | H117: -2741641.337
A118: -4.5 | B118: -2735562.31 | C118: 2735562.31 | D118: 7.902599805e-08 | F118: 3.318647127e-06 | G118: 7.726583932e-08 | H118: -2738601.824
A119: -4.495 | B119: -2732522.796 | C119: 2732522.796 | D119: 8.082423355e-08 | F119: 3.397673125e-06 | G119: 7.902599805e-08 | H119: -2735562.31
A120: -4.49 | B120: -2729483.283 | C120: 2729483.283 | D120: 8.266132132e-08 | F120: 3.478497358e-06 | G120: 8.082423355e-08 | H120: -2732522.796
A121: -4.485 | B121: -2726443.769 | C121: 2726443.769 | D121: 8.453805155e-08 | F121: 3.56115868e-06 | G121: 8.266132132e-08 | H121: -2729483.283
A122: -4.48 | B122: -2723404.255 | C122: 2723404.255 | D122: 8.645522937e-08 | F122: 3.645696731e-06 | G122: 8.453805155e-08 | H122: -2726443.769
A123: -4.475 | B123: -2720364.742 | C123: 2720364.742 | D123: 8.841367513e-08 | F123: 3.732151961e-06 | G123: 8.645522937e-08 | H123: -2723404.255
A124: -4.47 | B124: -2717325.228 | C124: 2717325.228 | D124: 9.041422463e-08 | F124: 3.820565636e-06 | G124: 8.841367513e-08 | H124: -2720364.742
A125: -4.465 | B125: -2714285.714 | C125: 2714285.714 | D125: 9.24577294e-08 | F125: 3.91097986e-06 | G125: 9.041422463e-08 | H125: -2717325.228
A126: -4.46 | B126: -2711246.201 | C126: 2711246.201 | D126: 9.454505696e-08 | F126: 4.00343759e-06 | G126: 9.24577294e-08 | H126: -2714285.714
A127: -4.455 | B127: -2708206.687 | C127: 2708206.687 | D127: 9.667709111e-08 | F127: 4.097982647e-06 | G127: 9.454505696e-08 | H127: -2711246.201
A128: -4.45 | B128: -2705167.173 | C128: 2705167.173 | D128: 9.885473222e-08 | F128: 4.194659738e-06 | G128: 9.667709111e-08 | H128: -2708206.687
A129: -4.445 | B129: -2702127.66 | C129: 2702127.66 | D129: 1.010788975e-07 | F129: 4.29351447e-06 | G129: 9.885473222e-08 | H129: -2705167.173
A130: -4.44 | B130: -2699088.146 | C130: 2699088.146 | D130: 1.033505211e-07 | F130: 4.394593367e-06 | G130: 1.010788975e-07 | H130: -2702127.66
A131: -4.435 | B131: -2696048.632 | C131: 2696048.632 | D131: 1.05670555e-07 | F131: 4.497943889e-06 | G131: 1.033505211e-07 | H131: -2699088.146
A132: -4.43 | B132: -2693009.119 | C132: 2693009.119 | D132: 1.080399684e-07 | F132: 4.603614444e-06 | G132: 1.05670555e-07 | H132: -2696048.632
A133: -4.425 | B133: -2689969.605 | C133: 2689969.605 | D133: 1.104597488e-07 | F133: 4.711654412e-06 | G133: 1.080399684e-07 | H133: -2693009.119
A134: -4.42 | B134: -2686930.091 | C134: 2686930.091 | D134: 1.129309019e-07 | F134: 4.822114161e-06 | G134: 1.104597488e-07 | H134: -2689969.605
A135: -4.415 | B135: -2683890.578 | C135: 2683890.578 | D135: 1.154544521e-07 | F135: 4.935045063e-06 | G135: 1.129309019e-07 | H135: -2686930.091
A136: -4.41 | B136: -2680851.064 | C136: 2680851.064 | D136: 1.180314426e-07 | F136: 5.050499515e-06 | G136: 1.154544521e-07 | H136: -2683890.578
A137: -4.405 | B137: -2677811.55 | C137: 2677811.55 | D137: 1.20662936e-07 | F137: 5.168530957e-06 | G137: 1.180314426e-07 | H137: -2680851.064
A138: -4.4 | B138: -2674772.036 | C138: 2674772.036 | D138: 1.233500144e-07 | F138: 5.289193893e-06 | G138: 1.20662936e-07 | H138: -2677811.55
A139: -4.395 | B139: -2671732.523 | C139: 2671732.523 | D139: 1.260937798e-07 | F139: 5.412543908e-06 | G139: 1.233500144e-07 | H139: -2674772.036
A140: -4.39 | B140: -2668693.009 | C140: 2668693.009 | D140: 1.288953543e-07 | F140: 5.538637687e-06 | G140: 1.260937798e-07 | H140: -2671732.523
A141: -4.385 | B141: -2665653.495 | C141: 2665653.495 | D141: 1.317558808e-07 | F141: 5.667533042e-06 | G141: 1.288953543e-07 | H141: -2668693.009
A142: -4.38 | B142: -2662613.982 | C142: 2662613.982 | D142: 1.34676523e-07 | F142: 5.799288923e-06 | G142: 1.317558808e-07 | H142: -2665653.495
A143: -4.375 | B143: -2659574.468 | C143: 2659574.468 | D143: 1.376584657e-07 | F143: 5.933965446e-06 | G143: 1.34676523e-07 | H143: -2662613.982
A144: -4.37 | B144: -2656534.954 | C144: 2656534.954 | D144: 1.407029156e-07 | F144: 6.071623911e-06 | G144: 1.376584657e-07 | H144: -2659574.468
A145: -4.365 | B145: -2653495.441 | C145: 2653495.441 | D145: 1.438111011e-07 | F145: 6.212326827e-06 | G145: 1.407029156e-07 | H145: -2656534.954
A146: -4.36 | B146: =A146*D$11+D$10 -> -2650455.927 | C146: =IF(EXACT(D$12,"under"),IF(B146<D$8,D$9*(D$8-B146),0),IF(B146>D$8,D$9*(B146-D$8),0)) -> 2650455.927 | D146: 1.46984273e-07 | F146: 6.356137928e-06 | G146: 1.438111011e-07 | H146: -2653495.441
A147: -4.355 | B147: -2647416.413 | C147: 2647416.413 | D147: =IF(OR(B147<D$13,B147>D$14),0,NORMDIST(B147,D$10,D$11,1)-NORMDIST(B146,D$10,D$11,1)) -> 1.502237049e-07 | F147: =NORMDIST(B146,D$10,D$11,1) -> 6.503122201e-06 | G147: 1.46984273e-07 | H147: -2650455.927
A148: -4.35 | B148: -2644376.9 | C148: 2644376.9 | D148: 1.535306934e-07 | F148: 6.653345906e-06 | G148: =IF(AND(H148>=D$13,H148<=D$14),(F148-F147)/(1-O$19-O$20),0) -> 1.502237049e-07 | H148: =D$10+A147*D$11 -> -2647416.413
A149: -4.345 | B149: -2641337.386 | C149: 2641337.386 | D149: 1.569065584e-07 | F149: 6.806876599e-06 | G149: 1.535306934e-07 | H149: -2644376.9
A150: -4.34 | B150: -2638297.872 | C150: 2638297.872 | D150: 1.603526438e-07 | F150: 6.963783158e-06 | G150: 1.569065584e-07 | H150: -2641337.386
A151: -4.335 | B151: -2635258.359 | C151: 2635258.359 | D151: 1.638703175e-07 | F151: 7.124135801e-06 | G151: 1.603526438e-07 | H151: -2638297.872
A152: -4.33 | B152: -2632218.845 | C152: 2632218.845 | D152: 1.674609723e-07 | F152: 7.288006119e-06 | G152: 1.638703175e-07 | H152: -2635258.359
A153: -4.325 | B153: -2629179.331 | C153: 2629179.331 | D153: 1.711260258e-07 | F153: 7.455467091e-06 | G153: 1.674609723e-07 | H153: -2632218.845
A154: -4.32 | B154: -2626139.818 | C154: 2626139.818 | D154: 1.74866921e-07 | F154: 7.626593117e-06 | G154: 1.711260258e-07 | H154: -2629179.331
A155: -4.315 | B155: -2623100.304 | C155: 2623100.304 | D155: 1.786851267e-07 | F155: 7.801460038e-06 | G155: 1.74866921e-07 | H155: -2626139.818
A156: -4.31 | B156: -2620060.79 | C156: 2620060.79 | D156: 1.82582138e-07 | F156: 7.980145165e-06 | G156: 1.786851267e-07 | H156: -2623100.304
A157: -4.305 | B157: -2617021.277 | C157: 2617021.277 | D157: 1.865594767e-07 | F157: 8.162727303e-06 | G157: 1.82582138e-07 | H157: -2620060.79
A158: -4.3 | B158: -2613981.763 | C158: 2613981.763 | D158: 1.906186915e-07 | F158: 8.349286779e-06 | G158: 1.865594767e-07 | H158: -2617021.277
A159: -4.295 | B159: -2610942.249 | C159: 2610942.249 | D159: 1.947613589e-07 | F159: 8.539905471e-06 | G159: 1.906186915e-07 | H159: -2613981.763
A160: -4.29 | B160: -2607902.736 | C160: 2607902.736 | D160: 1.98989083e-07 | F160: 8.73466683e-06 | G160: 1.947613589e-07 | H160: -2610942.249
A161: -4.285 | B161: -2604863.222 | C161: 2604863.222 | D161: 2.033034965e-07 | F161: 8.933655913e-06 | G161: 1.98989083e-07 | H161: -2607902.736
A162: -4.28 | B162: -2601823.708 | C162: 2601823.708 | D162: 2.077062609e-07 | F162: 9.136959409e-06 | G162: 2.033034965e-07 | H162: -2604863.222
A163: -4.275 | B163: -2598784.195 | C163: 2598784.195 | D163: 2.121990671e-07 | F163: 9.34466567e-06 | G163: 2.077062609e-07 | H163: -2601823.708
A164: -4.27 | B164: -2595744.681 | C164: 2595744.681 | D164: 2.167836356e-07 | F164: 9.556864737e-06 | G164: 2.121990671e-07 | H164: -2598784.195
A165: -4.265 | B165: -2592705.167 | C165: 2592705.167 | D165: 2.214617173e-07 | F165: 9.773648373e-06 | G165: 2.167836356e-07 | H165: -2595744.681
A166: -4.26 | B166: -2589665.653 | C166: 2589665.653 | D166: 2.262350937e-07 | F166: 9.99511009e-06 | G166: 2.214617173e-07 | H166: -2592705.167
A167: -4.255 | B167: -2586626.14 | C167: 2586626.14 | D167: 2.311055776e-07 | F167: 1.022134518e-05 | G167: 2.262350937e-07 | H167: -2589665.653
A168: -4.25 | B168: -2583586.626 | C168: 2583586.626 | D168: 2.360750133e-07 | F168: 1.045245076e-05 | G168: 2.311055776e-07 | H168: -2586626.14
A169: -4.245 | B169: -2580547.112 | C169: 2580547.112 | D169: 2.411452776e-07 | F169: 1.068852577e-05 | G169: 2.360750133e-07 | H169: -2583586.626
A170: -4.24 | B170: -2577507.599 | C170: 2577507.599 | D170: 2.463182796e-07 | F170: 1.092967105e-05 | G170: 2.411452776e-07 | H170: -2580547.112
A171: -4.235 | B171: -2574468.085 | C171: 2574468.085 | D171: 2.515959619e-07 | F171: 1.117598933e-05 | G171: 2.463182796e-07 | H171: -2577507.599
A172: -4.23 | B172: -2571428.571 | C172: 2571428.571 | D172: 2.569803007e-07 | F172: 1.142758529e-05 | G172: 2.515959619e-07 | H172: -2574468.085
A173: -4.225 | B173: -2568389.058 | C173: 2568389.058 | D173: 2.624733064e-07 | F173: 1.168456559e-05 | G173: 2.569803007e-07 | H173: -2571428.571
A174: -4.22 | B174: -2565349.544 | C174: 2565349.544 | D174: 2.680770242e-07 | F174: 1.19470389e-05 | G174: 2.624733064e-07 | H174: -2568389.058
A175: -4.215 | B175: -2562310.03 | C175: 2562310.03 | D175: 2.737935346e-07 | F175: 1.221511593e-05 | G175: 2.680770242e-07 | H175: -2565349.544
A176: -4.21 | B176: -2559270.517 | C176: 2559270.517 | D176: 2.796249539e-07 | F176: 1.248890946e-05 | G176: 2.737935346e-07 | H176: -2562310.03
A177: -4.205 | B177: -2556231.003 | C177: 2556231.003 | D177: 2.855734349e-07 | F177: 1.276853441e-05 | G177: 2.796249539e-07 | H177: -2559270.517
A178: -4.2 | B178: -2553191.489 | C178: 2553191.489 | D178: 2.916411673e-07 | F178: 1.305410785e-05 | G178: 2.855734349e-07 | H178: -2556231.003
A179: -4.195 | B179: -2550151.976 | C179: 2550151.976 | D179: 2.978303781e-07 | F179: 1.334574902e-05 | G179: 2.916411673e-07 | H179: -2553191.489
A180: -4.19 | B180: -2547112.462 | C180: 2547112.462 | D180: 3.041433328e-07 | F180: 1.364357939e-05 | G180: 2.978303781e-07 | H180: -2550151.976
A181: -4.185 | B181: -2544072.948 | C181: 2544072.948 | D181: 3.105823353e-07 | F181: 1.394772273e-05 | G181: 3.041433328e-07 | H181: -2547112.462
A182: -4.18 | B182: -2541033.435 | C182: 2541033.435 | D182: 3.171497287e-07 | F182: 1.425830506e-05 | G182: 3.105823353e-07 | H182: -2544072.948
A183: -4.175 | B183: -2537993.921 | C183: 2537993.921 | D183: 3.238478961e-07 | F183: 1.457545479e-05 | G183: 3.171497287e-07 | H183: -2541033.435
A184: -4.17 | B184: -2534954.407 | C184: 2534954.407 | D184: 3.30679261e-07 | F184: 1.489930269e-05 | G184: 3.238478961e-07 | H184: -2537993.921
A185: -4.165 | B185: -2531914.894 | C185: 2531914.894 | D185: 3.376462879e-07 | F185: 1.522998195e-05 | G185: 3.30679261e-07 | H185: -2534954.407
A186: -4.16 | B186: -2528875.38 | C186: 2528875.38 | D186: 3.447514832e-07 | F186: 1.556762824e-05 | G186: 3.376462879e-07 | H186: -2531914.894
A187: -4.155 | B187: -2525835.866 | C187: 2525835.866 | D187: 3.519973952e-07 | F187: 1.591237972e-05 | G187: 3.447514832e-07 | H187: -2528875.38
A188: -4.15 | B188: -2522796.353 | C188: 2522796.353 | D188: 3.593866154e-07 | F188: 1.626437711e-05 | G188: 3.519973952e-07 | H188: -2525835.866
A189: -4.145 | B189: -2519756.839 | C189: 2519756.839 | D189: 3.669217789e-07 | F189: 1.662376373e-05 | G189: 3.593866154e-07 | H189: -2522796.353
A190: -4.14 | B190: -2516717.325 | C190: 2516717.325 | D190: 3.74605565e-07 | F190: 1.699068551e-05 | G190: 3.669217789e-07 | H190: -2519756.839
A191: -4.135 | B191: -2513677.812 | C191: 2513677.812 | D191: 3.824406977e-07 | F191: 1.736529107e-05 | G191: 3.74605565e-07 | H191: -2516717.325
A192: -4.13 | B192: -2510638.298 | C192: 2510638.298 | D192: 3.904299468e-07 | F192: 1.774773177e-05 | G192: 3.824406977e-07 | H192: -2513677.812
A193: -4.125 | B193: -2507598.784 | C193: 2507598.784 | D193: 3.985761281e-07 | F193: 1.813816172e-05 | G193: 3.904299468e-07 | H193: -2510638.298
A194: -4.12 | B194: -2504559.271 | C194: 2504559.271 | D194: 4.068821044e-07 | F194: 1.853673785e-05 | G194: 3.985761281e-07 | H194: -2507598.784
A195: -4.115 | B195: -2501519.757 | C195: 2501519.757 | D195: 4.15350786e-07 | F195: 1.894361995e-05 | G195: 4.068821044e-07 | H195: -2504559.271
A196: -4.11 | B196: -2498480.243 | C196: 2498480.243 | D196: 4.239851317e-07 | F196: 1.935897074e-05 | G196: 4.15350786e-07 | H196: -2501519.757
A197: -4.105 | B197: -2495440.729 | C197: 2495440.729 | D197: 4.32788149e-07 | F197: 1.978295587e-05 | G197: 4.239851317e-07 | H197: -2498480.243
A198: -4.1 | B198: -2492401.216 | C198: 2492401.216 | D198: 4.417628953e-07 | F198: 2.021574402e-05 | G198: 4.32788149e-07 | H198: -2495440.729
A199: -4.095 | B199: -2489361.702 | C199: 2489361.702 | D199: 4.509124784e-07 | F199: 2.065750691e-05 | G199: 4.417628953e-07 | H199: -2492401.216
A200: -4.09 | B200: -2486322.188 | C200: 2486322.188 | D200: 4.602400572e-07 | F200: 2.110841939e-05 | G200: 4.509124784e-07 | H200: -2489361.702
A201: -4.085 | B201: -2483282.675 | C201: 2483282.675 | D201: 4.697488425e-07 | F201: 2.156865945e-05 | G201: 4.602400572e-07 | H201: -2486322.188
... 1818 more rows

Sheet Validation (hidden)
A1: Normal
A2: Binary
A3: Uniform
A4: Lognorm
A5: Triangular
A6: Constant
